[Event "Skol-SM i Schack 2024, Grupp A"]
[Site "Arena Varberg, Kattegattsvagen 26, Varberg, Sweden"]
[Date "2024.10.12"]
[Round "6.7"]
[White "Al-Sherufi, Haider"]
[Black "Demeestere, Ewoud"]
[Result "1-0"]
[TimeControl "45 minutes + 10 seconds per move from move one."]
[WhiteFideId "1745212"]
[BlackFideId "1773585"]
[WhiteElo "1599"]
[BlackElo "1833"]

1. e4 {[%emt 00:00:54]} e6 {[%clk 00:45:14]} {[%emt 00:00:07]} 2. d4 {[%clk
00:45:25]} {[%emt 00:00:02]} d5 {[%clk 00:45:23]} {[%emt 00:00:01]} 3. exd5
{[%clk 00:45:29]} {[%emt 00:00:07]} exd5 {[%clk 00:45:31]} 4. Nf3 {[%clk
00:45:14]} {[%emt 00:00:24]} Nf6 {[%clk 00:45:39]} {[%emt 00:00:03]} 5. Bd3
{[%clk 00:45:21]} {[%emt 00:00:03]} Bd6 {[%clk 00:45:47]} {[%emt 00:00:01]} 6.
O-O {[%clk 00:45:29]} {[%emt 00:00:02]} O-O {[%clk 00:45:55]} {[%emt 00:00:03]}
7. Bg5 {[%clk 00:45:35]} {[%emt 00:00:04]} Bg4 {[%clk 00:46:02]} {[%emt
00:00:02]} 8. Nbd2 {[%clk 00:45:35]} {[%emt 00:00:10]} Nbd7 {[%clk 00:46:10]}
{[%emt 00:00:02]} 9. c4 {[%clk 00:44:48]} {[%emt 00:00:58]} dxc4 {[%clk
00:45:40]} {[%emt 00:00:39]} 10. Bxc4 {[%clk 00:44:53]} {[%emt 00:00:06]} c6
{[%clk 00:45:07]} {[%emt 00:00:43]} 11. Ne4 {[%clk 00:44:34]} {[%emt 00:00:29]}
Be7 {[%clk 00:44:55]} {[%emt 00:00:21]} 12. Nxf6+ {[%clk 00:41:04]} {[%emt
00:03:40]} Bxf6 {[%clk 00:44:54]} {[%emt 00:00:11]} 13. Bxf6 {[%clk 00:40:50]}
{[%emt 00:00:24]} Nxf6 {[%clk 00:45:02]} {[%emt 00:00:03]} 14. Be2 {[%clk
00:40:13]} {[%emt 00:00:47]} Qb6 {[%clk 00:44:46]} {[%emt 00:00:26]} 15. h3
{[%clk 00:36:42]} {[%emt 00:03:41]} Bxf3 {[%clk 00:44:30]} {[%emt 00:00:26]} 16.
Bxf3 {[%clk 00:36:49]} {[%emt 00:00:03]} Rad8 {[%clk 00:44:36]} {[%emt
00:00:03]} 17. Qc2 {[%clk 00:36:23]} {[%emt 00:00:37]} Rxd4 {[%clk 00:43:27]}
{[%emt 00:01:18]} 18. Rad1 {[%clk 00:36:12]} {[%emt 00:00:21]} Rxd1 {[%clk
00:43:12]} {[%emt 00:00:25]} 19. Rxd1 {[%clk 00:36:19]} {[%emt 00:00:03]} Re8
{[%clk 00:43:13]} {[%emt 00:00:09]} 20. a3 {[%clk 00:33:34]} {[%emt 00:02:56]}
Rd8 {[%clk 00:40:28]} {[%emt 00:02:55]} 21. Rxd8+ {[%clk 00:32:47]} {[%emt
00:00:57]} Qxd8 {[%clk 00:40:35]} {[%emt 00:00:02]} 22. Qb3 {[%clk 00:32:56]}
{[%emt 00:00:02]} Qe7 {[%clk 00:40:02]} {[%emt 00:00:37]} 23. g3 {[%clk
00:32:25]} {[%emt 00:00:47]} h6 {[%clk 00:40:09]} {[%emt 00:00:03]} 24. Kg2
{[%clk 00:32:31]} {[%emt 00:00:04]} Qc7 {[%clk 00:38:53]} {[%emt 00:01:24]} 25.
Qe3 {[%clk 00:27:59]} {[%emt 00:04:43]} Qb6 {[%clk 00:37:22]} {[%emt 00:01:41]}
26. Qxb6 {[%clk 00:27:19]} {[%emt 00:00:50]} axb6 {[%clk 00:37:31]} {[%emt
00:00:02]} 27. g4 {[%clk 00:26:37]} {[%emt 00:00:52]} Kf8 {[%clk 00:37:33]}
{[%emt 00:00:08]} 28. Kg3 {[%clk 00:26:43]} {[%emt 00:00:03]} Ke7 {[%clk
00:37:41]} {[%emt 00:00:03]} 29. Kf4 {[%clk 00:26:49]} {[%emt 00:00:01]} Ke6
{[%clk 00:37:08]} {[%emt 00:00:45]} 30. h4 {[%clk 00:26:28]} {[%emt 00:00:30]}
Nd7 {[%clk 00:36:46]} {[%emt 00:00:34]} 31. g5 {[%clk 00:26:20]} {[%emt
00:00:18]} hxg5+ {[%clk 00:36:51]} {[%emt 00:00:05]} 32. hxg5 {[%clk 00:26:26]}
{[%emt 00:00:03]} Nc5 {[%clk 00:36:53]} {[%emt 00:00:09]} 33. Be2 {[%clk
00:23:46]} {[%emt 00:02:50]} b5 {[%clk 00:35:44]} {[%emt 00:01:18]} 34. Ke3
{[%clk 00:22:35]} {[%emt 00:01:21]} Kf5 {[%clk 00:35:14]} {[%emt 00:00:40]} 35.
f4 {[%clk 00:22:31]} {[%emt 00:00:14]} Ne6 {[%clk 00:34:45]} {[%emt 00:00:39]}
36. Bd3+ {[%clk 00:21:07]} {[%emt 00:01:34]} Kg4 {[%clk 00:34:52]} {[%emt
00:00:03]} 37. Be2+ {[%clk 00:21:17]} Kg3 {[%clk 00:35:00]} {[%emt 00:00:03]}
38. f5 {[%clk 00:20:48]} {[%emt 00:00:39]} Nxg5 {[%clk 00:33:41]} {[%emt
00:01:29]} 39. Bh5 {[%clk 00:20:56]} {[%emt 00:00:02]} Kh4 {[%clk 00:33:36]}
{[%emt 00:00:15]} 40. Bd1 {[%clk 00:20:43]} {[%emt 00:00:21]} Nh7 {[%clk
00:32:38]} {[%emt 00:01:09]} 41. Bb3 {[%clk 00:19:46]} {[%emt 00:01:07]} Kg5
{[%clk 00:32:12]} {[%emt 00:00:37]} 42. Kd4 {[%clk 00:19:47]} {[%emt 00:00:09]}
Kxf5 {[%clk 00:31:48]} {[%emt 00:00:34]} 43. Bc2+ {[%clk 00:19:56]} {[%emt
00:00:01]} Kf4 {[%clk 00:31:50]} {[%emt 00:00:08]} 44. Bxh7 {[%clk 00:20:04]}
{[%emt 00:00:02]} g5 {[%clk 00:31:59]} {[%emt 00:00:01]} 45. Be4 {[%clk
00:19:08]} {[%emt 00:01:06]} f5 {[%clk 00:32:07]} {[%emt 00:00:02]} 46. Bh1
{[%clk 00:18:47]} {[%emt 00:00:30]} b6 {[%clk 00:31:53]} {[%emt 00:00:26]} 47.
Bxc6 {[%clk 00:18:28]} {[%emt 00:00:28]} Kg3 {[%clk 00:32:01]} {[%emt
00:00:02]} 48. Bxb5 {[%clk 00:18:01]} {[%emt 00:00:37]} Kf2 {[%clk 00:31:42]}
{[%emt 00:00:29]} 49. Ke5 {[%clk 00:17:41]} {[%emt 00:00:29]} g4 {[%clk
00:31:42]} {[%emt 00:00:11]} 50. Kxf5 {[%clk 00:17:32]} {[%emt 00:00:19]} g3
{[%clk 00:31:51]} {[%emt 00:00:01]} 51. Bc6 {[%clk 00:17:41]} {[%emt 00:00:01]}
g2 {[%clk 00:31:57]} {[%emt 00:00:04]} 52. Bxg2 {[%clk 00:17:47]} {[%emt
00:00:04]} Kxg2 {[%clk 00:32:06]} {[%emt 00:00:01]} 53. Ke5 {[%clk 00:17:56]}
Kf3 {[%clk 00:32:14]} {[%emt 00:00:02]} 54. Kd6 {[%clk 00:18:03]} {[%emt
00:00:01]} Ke3 {[%clk 00:32:23]} 55. Kc6 {[%clk 00:18:08]} {[%emt 00:00:07]}
Kd4 {[%clk 00:32:32]} {[%emt 00:00:01]} 56. b4 {[%clk 00:18:11]} {[%emt
00:00:08]} 1-0

[Event "Skol-SM i Schack 2024, Grupp A"]
[Site "Arena Varberg, Kattegattsvagen 26, Varberg, Sweden"]
[Date "2024.10.12"]
[Round "3.12"]
[White "Al-Sherufi, Haider"]
[Black "Schriever-Abeln, Marius"]
[Result "1/2-1/2"]
[TimeControl "45 minutes + 10 seconds per move from move one."]
[WhiteFideId "1745212"]
[BlackFideId "1752650"]
[WhiteElo "1599"]
[BlackElo "2009"]

1. e4 {[%clk 00:40:24]} {[%emt 00:04:55]} c5 {[%clk 00:45:15]} {[%emt
00:00:07]} 2. Nc3 {[%clk 00:40:31]} {[%emt 00:00:02]} e6 {[%clk 00:45:17]}
{[%emt 00:00:09]} 3. g3 {[%clk 00:40:40]} {[%emt 00:00:02]} Nc6 {[%clk
00:44:59]} {[%emt 00:00:27]} 4. Bg2 {[%clk 00:40:47]} {[%emt 00:00:02]} Nf6
{[%clk 00:44:47]} {[%emt 00:00:22]} 5. f4 {[%clk 00:40:51]} {[%emt 00:00:07]}
d5 {[%clk 00:43:00]} {[%emt 00:01:56]} 6. e5 {[%clk 00:40:03]} {[%emt
00:00:58]} Nd7 {[%clk 00:42:36]} {[%emt 00:00:34]} 7. Nf3 {[%clk 00:39:37]}
{[%emt 00:00:35]} Be7 {[%clk 00:42:07]} {[%emt 00:00:41]} 8. O-O {[%clk
00:39:35]} {[%emt 00:00:12]} O-O {[%clk 00:42:10]} {[%emt 00:00:06]} 9. d3
{[%clk 00:39:07]} {[%emt 00:00:38]} a6 {[%clk 00:41:03]} {[%emt 00:01:18]} 10.
a4 {[%clk 00:39:12]} {[%emt 00:00:05]} b6 {[%clk 00:40:31]} {[%emt 00:00:42]}
11. Bd2 {[%clk 00:37:50]} {[%emt 00:01:31]} Bb7 {[%clk 00:40:18]} {[%emt
00:00:23]} 12. Ne2 {[%clk 00:35:12]} {[%emt 00:02:48]} f6 {[%clk 00:37:53]}
{[%emt 00:02:35]} 13. exf6 {[%clk 00:34:06]} {[%emt 00:01:16]} Bxf6 {[%clk
00:37:54]} {[%emt 00:00:10]} 14. Rb1 {[%clk 00:32:34]} {[%emt 00:01:42]} Qc7
{[%clk 00:36:55]} {[%emt 00:01:09]} 15. g4 {[%clk 00:28:08]} {[%emt 00:04:35]}
Rae8 {[%clk 00:33:08]} {[%emt 00:03:58]} 16. g5 {[%clk 00:26:19]} {[%emt
00:01:59]} Be7 {[%clk 00:33:07]} {[%emt 00:00:12]} 17. Nh4 {[%clk 00:26:14]}
{[%emt 00:00:14]} g6 {[%clk 00:27:26]} {[%emt 00:05:51]} 18. f5 {[%clk
00:19:09]} {[%emt 00:07:15]} gxf5 {[%clk 00:19:58]} {[%emt 00:07:37]} 19. Bf4
{[%clk 00:11:47]} {[%emt 00:07:33]} Bd6 {[%clk 00:17:51]} {[%emt 00:02:17]} 20.
g6 {[%clk 00:11:38]} {[%emt 00:00:18]} Nde5 {[%clk 00:14:20]} {[%emt 00:03:42]}
21. gxh7+ {[%clk 00:09:27]} {[%emt 00:02:21]} Qxh7 {[%clk 00:13:42]} {[%emt
00:00:48]} 22. Nf3 {[%clk 00:06:40]} {[%emt 00:02:58]} Rf6 {[%clk 00:11:51]}
{[%emt 00:01:59]} 23. d4 {[%clk 00:05:42]} {[%emt 00:01:08]} Nxf3+ {[%clk
00:10:34]} {[%emt 00:01:28]} 24. Rxf3 {[%clk 00:05:47]} {[%emt 00:00:05]} Bxf4
{[%clk 00:09:15]} {[%emt 00:01:29]} 25. Nxf4 {[%clk 00:03:50]} {[%emt
00:02:07]} Nxd4 {[%clk 00:07:15]} {[%emt 00:02:10]} 26. Rh3 {[%clk 00:03:39]}
{[%emt 00:00:20]} Rh6 {[%clk 00:06:29]} {[%emt 00:00:56]} 27. Rg3+ {[%clk
00:03:48]} {[%emt 00:00:02]} Kh8 {[%clk 00:04:49]} {[%emt 00:01:50]} 28. c3
{[%clk 00:03:13]} {[%emt 00:00:45]} Nc6 {[%clk 00:04:15]} {[%emt 00:00:44]} 29.
Qe2 {[%clk 00:02:35]} {[%emt 00:00:47]} Rg8 {[%clk 00:02:17]} {[%emt 00:02:08]}
30. Qe3 {[%clk 00:00:46]} {[%emt 00:02:00]} Rxg3 {[%clk 00:01:55]} {[%emt
00:00:31]} 31. Qxg3 {[%clk 00:00:53]} {[%emt 00:00:04]} Qg7 {[%clk 00:01:34]}
{[%emt 00:00:31]} 32. Qe3 {[%clk 00:00:33]} {[%emt 00:00:29]} Ne5 {[%clk
00:01:11]} {[%emt 00:00:33]} 33. Re1 {[%clk 00:00:11]} {[%emt 00:00:32]} Ng4
{[%clk 00:00:51]} {[%emt 00:00:30]} 34. Qg3 {[%clk 00:00:20]} Nxh2 {[%clk
00:00:30]} {[%emt 00:00:32]} 35. Qxg7+ {[%clk 00:00:28]} Kxg7 {[%clk 00:00:40]}
{[%emt 00:00:01]} 36. Nxe6+ {[%clk 00:00:36]} {[%emt 00:00:01]} Kf6 {[%clk
00:00:38]} {[%emt 00:00:13]} 37. Nd8 {[%clk 00:00:38]} {[%emt 00:00:08]} Bc8
{[%clk 00:00:29]} {[%emt 00:00:20]} 38. Bxd5 {[%clk 00:00:47]} Ng4 {[%clk
00:00:31]} {[%emt 00:00:07]} 39. Re8 {[%clk 00:00:17]} {[%emt 00:00:40]} Bd7
{[%clk 00:00:29]} {[%emt 00:00:12]} 40. Rg8 {[%clk 00:00:12]} {[%emt 00:00:15]}
Rh7 {[%clk 00:00:20]} {[%emt 00:00:19]} 41. Nc6 {[%clk 00:00:13]} {[%emt
00:00:09]} Ne3 {[%clk 00:00:14]} {[%emt 00:00:16]} 42. Rf8+ {[%clk 00:00:16]}
{[%emt 00:00:07]} Kg7 {[%clk 00:00:20]} {[%emt 00:00:04]} 43. Rf7+ {[%clk
00:00:25]} Kh6 {[%clk 00:00:24]} {[%emt 00:00:07]} 44. Rxh7+ {[%clk 00:00:19]}
{[%emt 00:00:15]} Kxh7 {[%emt 00:00:01]} 45. Bf3 {[%clk 00:00:13]} {[%emt
00:00:16]} Bxc6 {[%clk 00:00:33]} {[%emt 00:00:09]} 46. Bxc6 {[%clk 00:00:22]}
{[%emt 00:00:02]} Nd1 {[%clk 00:00:42]} {[%emt 00:00:01]} 47. b4 {[%clk
00:00:28]} {[%emt 00:00:04]} Nxc3 {[%clk 00:00:47]} {[%emt 00:00:05]} 48. bxc5
{[%clk 00:00:32]} {[%emt 00:00:06]} bxc5 {[%clk 00:00:56]} {[%emt 00:00:01]} 49.
Kf2 {[%clk 00:00:40]} {[%emt 00:00:02]} Kg6 {[%clk 00:00:56]} {[%emt 00:00:10]}
50. Ke3 {[%clk 00:00:46]} Kg5 {[%clk 00:00:46]} {[%emt 00:00:22]} 51. Kd3
{[%clk 00:00:55]} {[%emt 00:00:02]} Nxa4 {[%clk 00:00:14]} {[%emt 00:00:42]} 52.
Bxa4 {[%clk 00:01:04]} {[%emt 00:00:01]} f4 {[%clk 00:00:22]} {[%emt 00:00:02]}
53. Bc6 {[%clk 00:01:13]} Kg4 {[%clk 00:00:30]} {[%emt 00:00:01]} 54. Kc4
{[%clk 00:01:17]} {[%emt 00:00:07]} f3 {[%clk 00:00:20]} {[%emt 00:00:20]} 55.
Bxf3 {[%clk 00:01:26]} {[%emt 00:00:02]} Kxf3 {[%clk 00:00:28]} 56. Kxc5 {[%clk
00:01:35]} {[%emt 00:00:01]} 1/2-1/2

[Event "Skol-SM i Schack 2024, Grupp A"]
[Site "Arena Varberg, Kattegattsvagen 26, Varberg, Sweden"]
[Date "2024.10.12"]
[Round "5.4"]
[White "Wedenberg, Oliver"]
[Black "Johansson, William"]
[Result "0-1"]
[TimeControl "45 minutes + 10 seconds per move from move one."]
[WhiteFideId "1767909"]
[BlackFideId "1744070"]
[WhiteElo "1858"]
[BlackElo "1971"]

1. e4 {[%clk 00:45:16]} {[%emt 00:00:03]} d6 {[%clk 00:44:44]} {[%emt
00:00:38]} 2. d4 {[%clk 00:45:17]} {[%emt 00:00:08]} Nf6 {[%clk 00:44:45]}
{[%emt 00:00:09]} 3. Nc3 {[%clk 00:45:24]} {[%emt 00:00:04]} Nbd7 {[%clk
00:44:53]} {[%emt 00:00:02]} 4. Nf3 {[%clk 00:43:50]} {[%emt 00:01:43]} e5
{[%clk 00:43:53]} {[%emt 00:01:11]} 5. Bc4 {[%clk 00:42:38]} {[%emt 00:01:22]}
Be7 {[%clk 00:43:59]} {[%emt 00:00:04]} 6. O-O {[%clk 00:42:10]} {[%emt
00:00:38]} h6 {[%clk 00:43:56]} {[%emt 00:00:13]} 7. h3 {[%clk 00:38:46]}
{[%emt 00:03:34]} c6 {[%clk 00:44:03]} {[%emt 00:00:03]} 8. Bb3 {[%clk
00:37:23]} {[%emt 00:01:33]} b5 {[%clk 00:43:55]} {[%emt 00:00:19]} 9. a3
{[%clk 00:35:05]} {[%emt 00:02:28]} Qc7 {[%clk 00:42:18]} {[%emt 00:01:46]} 10.
d5 {[%clk 00:34:08]} {[%emt 00:01:07]} Nc5 {[%clk 00:39:38]} {[%emt 00:02:50]}
11. dxc6 {[%clk 00:26:52]} {[%emt 00:07:27]} Nxb3 {[%clk 00:39:26]} {[%emt
00:00:21]} 12. cxb3 {[%clk 00:26:46]} {[%emt 00:00:16]} Qxc6 {[%clk 00:39:30]}
{[%emt 00:00:06]} 13. Qd3 {[%clk 00:25:04]} {[%emt 00:01:51]} O-O {[%clk
00:34:55]} {[%emt 00:04:46]} 14. Be3 {[%clk 00:24:12]} {[%emt 00:01:02]} a6
{[%clk 00:27:39]} {[%emt 00:07:26]} 15. Rac1 {[%clk 00:24:09]} {[%emt
00:00:12]} Qb7 {[%clk 00:24:55]} {[%emt 00:02:54]} 16. Nd2 {[%clk 00:22:08]}
{[%emt 00:02:12]} Be6 {[%clk 00:23:55]} {[%emt 00:01:10]} 17. f4 {[%clk
00:16:58]} {[%emt 00:05:19]} exf4 {[%clk 00:23:45]} {[%emt 00:00:21]} 18. Bxf4
{[%clk 00:16:51]} {[%emt 00:00:17]} Rfd8 {[%clk 00:22:45]} {[%emt 00:01:10]} 19.
Qe2 {[%clk 00:16:08]} {[%emt 00:00:48]} Rac8 {[%clk 00:21:45]} {[%emt
00:01:15]} 20. Rfd1 {[%clk 00:14:05]} {[%emt 00:02:11]} Bf8 {[%clk 00:17:44]}
{[%emt 00:04:12]} 21. Qf3 {[%clk 00:13:51]} {[%emt 00:00:25]} Nd7 {[%clk
00:16:54]} {[%emt 00:00:59]} 22. Qg3 {[%clk 00:12:10]} {[%emt 00:01:51]} Kh7
{[%clk 00:17:00]} {[%emt 00:00:05]} 23. Bxd6 {[%clk 00:11:39]} {[%emt
00:00:41]} Qb6+ {[%clk 00:17:07]} {[%emt 00:00:03]} 24. Kh1 {[%clk 00:11:04]}
{[%emt 00:00:45]} Bxd6 {[%clk 00:17:08]} {[%emt 00:00:09]} 25. Qh4 {[%clk
00:09:49]} {[%emt 00:01:23]} Ne5 {[%clk 00:16:25]} {[%emt 00:00:55]} 26. Nf3
{[%clk 00:07:45]} {[%emt 00:02:13]} Nxf3 {[%clk 00:16:16]} {[%emt 00:00:19]} 27.
gxf3 {[%clk 00:07:54]} Qe3 {[%clk 00:15:38]} {[%emt 00:00:47]} 28. Rf1 {[%clk
00:07:09]} {[%emt 00:00:56]} Qf4 {[%clk 00:15:07]} {[%emt 00:00:41]} 29. Qf2
{[%clk 00:06:54]} {[%emt 00:00:25]} Bxh3 {[%clk 00:14:25]} {[%emt 00:00:52]} 30.
Rg1 {[%clk 00:07:01]} {[%emt 00:00:03]} Bc5 {[%clk 00:14:17]} {[%emt 00:00:18]}
31. Qg3 {[%clk 00:06:45]} {[%emt 00:00:25]} Qxg3 {[%clk 00:13:34]} {[%emt
00:00:54]} 32. Rxg3 {[%clk 00:06:54]} {[%emt 00:00:01]} Be3 {[%clk 00:13:26]}
{[%emt 00:00:17]} 33. Rc2 {[%clk 00:04:57]} {[%emt 00:02:06]} Be6 {[%clk
00:13:31]} {[%emt 00:00:06]} 34. Re2 {[%clk 00:04:59]} {[%emt 00:00:09]} Bf4
{[%clk 00:13:32]} {[%emt 00:00:09]} 35. Rg1 {[%clk 00:05:06]} {[%emt 00:00:03]}
Rd2 {[%clk 00:12:46]} {[%emt 00:00:56]} 36. b4 {[%clk 00:04:54]} {[%emt
00:00:22]} Rxe2 {[%clk 00:11:35]} {[%emt 00:01:21]} 37. Nxe2 {[%clk 00:05:03]}
{[%emt 00:00:01]} Be5 {[%clk 00:11:42]} {[%emt 00:00:03]} 0-1

[Event "Skol-SM i Schack 2024, Grupp A"]
[Site "Arena Varberg, Kattegattsvagen 26, Varberg, Sweden"]
[Date "2024.10.12"]
[Round "6.8"]
[White "Keskitalo, Rasmus"]
[Black "Langhals, Mattias"]
[Result "1/2-1/2"]
[TimeControl "45 minutes + 10 seconds per move from move one."]
[WhiteFideId "1768271"]
[BlackFideId "1779168"]
[WhiteElo "1752"]
[BlackElo "1697"]

1. e4 {[%clk 00:45:17]} {[%emt 00:00:02]} e6 {[%clk 00:45:13]} {[%emt
00:01:00]} 2. d4 {[%clk 00:45:25]} {[%emt 00:00:02]} d5 {[%clk 00:45:17]}
{[%emt 00:00:06]} 3. Nc3 {[%clk 00:45:29]} {[%emt 00:00:07]} dxe4 {[%clk
00:44:46]} {[%emt 00:00:41]} 4. Nxe4 {[%clk 00:45:37]} {[%emt 00:00:02]} Nf6
{[%clk 00:44:50]} {[%emt 00:00:05]} 5. Nxf6+ {[%clk 00:45:07]} {[%emt
00:00:40]} gxf6 {[%clk 00:44:54]} {[%emt 00:00:06]} 6. Nf3 {[%clk 00:45:15]}
{[%emt 00:00:02]} b6 {[%clk 00:44:40]} {[%emt 00:00:24]} 7. Bd3 {[%clk
00:43:31]} {[%emt 00:01:54]} Bb7 {[%clk 00:44:25]} {[%emt 00:00:25]} 8. c3
{[%clk 00:43:05]} {[%emt 00:00:36]} Nc6 {[%clk 00:44:01]} {[%emt 00:00:34]} 9.
Bf4 {[%clk 00:42:31]} {[%emt 00:00:44]} Bd6 {[%clk 00:43:21]} {[%emt 00:00:51]}
10. Bg3 {[%clk 00:42:30]} {[%emt 00:00:10]} Qd7 {[%clk 00:41:37]} {[%emt
00:01:54]} 11. Qc2 {[%clk 00:42:06]} {[%emt 00:00:33]} O-O-O {[%clk 00:39:56]}
{[%emt 00:01:51]} 12. O-O-O {[%clk 00:42:11]} {[%emt 00:00:04]} Kb8 {[%clk
00:39:05]} {[%emt 00:01:02]} 13. Nd2 {[%clk 00:41:59]} {[%emt 00:00:21]} Ne7
{[%clk 00:36:08]} {[%emt 00:03:07]} 14. Be4 {[%clk 00:41:26]} {[%emt 00:00:44]}
Bxe4 {[%clk 00:34:20]} {[%emt 00:01:58]} 15. Nxe4 {[%clk 00:41:33]} {[%emt
00:00:03]} f5 {[%clk 00:31:45]} {[%emt 00:02:45]} 16. Nxd6 {[%clk 00:39:34]}
{[%emt 00:02:08]} cxd6 {[%clk 00:31:46]} {[%emt 00:00:08]} 17. Rhe1 {[%clk
00:38:44]} {[%emt 00:01:02]} Ng6 {[%clk 00:31:22]} {[%emt 00:00:34]} 18. f3
{[%clk 00:37:44]} {[%emt 00:01:11]} Rc8 {[%clk 00:30:12]} {[%emt 00:01:20]} 19.
Kb1 {[%clk 00:37:49]} {[%emt 00:00:05]} Rc7 {[%clk 00:27:44]} {[%emt 00:02:38]}
20. Bf2 {[%clk 00:36:49]} {[%emt 00:01:09]} Rhc8 {[%clk 00:27:16]} {[%emt
00:00:38]} 21. g3 {[%clk 00:36:39]} {[%emt 00:00:20]} Qb5 {[%clk 00:26:08]}
{[%emt 00:01:19]} 22. Qb3 {[%clk 00:36:11]} {[%emt 00:00:37]} Qc4 {[%clk
00:25:20]} {[%emt 00:00:58]} 23. f4 {[%clk 00:34:49]} {[%emt 00:01:31]} Qxb3
{[%clk 00:24:43]} {[%emt 00:00:48]} 24. axb3 {[%clk 00:34:56]} {[%emt
00:00:03]} d5 {[%clk 00:24:41]} {[%emt 00:00:12]} 25. Rc1 {[%clk 00:32:59]}
{[%emt 00:02:06]} h5 {[%clk 00:22:18]} {[%emt 00:02:33]} 26. Kc2 {[%clk
00:32:20]} {[%emt 00:00:49]} Nf8 {[%clk 00:21:57]} {[%emt 00:00:31]} 27. Kd3
{[%clk 00:32:03]} {[%emt 00:00:28]} b5 {[%clk 00:19:11]} {[%emt 00:02:56]} 28.
Ra1 {[%clk 00:31:46]} {[%emt 00:00:27]} Kb7 {[%clk 00:18:39]} {[%emt 00:00:42]}
29. b4 {[%clk 00:31:01]} {[%emt 00:00:55]} Nd7 {[%clk 00:18:33]} {[%emt
00:00:16]} 30. Re2 {[%clk 00:29:47]} {[%emt 00:01:24]} Nf6 {[%clk 00:18:07]}
{[%emt 00:00:35]} 31. h3 {[%clk 00:29:30]} {[%emt 00:00:28]} Rg8 {[%clk
00:17:36]} {[%emt 00:00:41]} 32. Rg1 {[%clk 00:29:13]} {[%emt 00:00:25]} Ne4
{[%clk 00:17:05]} {[%emt 00:00:42]} 33. Be1 {[%clk 00:29:19]} {[%emt 00:00:05]}
f6 {[%clk 00:16:51]} {[%emt 00:00:25]} 34. Reg2 {[%clk 00:28:59]} {[%emt
00:00:28]} Rcg7 {[%clk 00:16:28]} {[%emt 00:00:34]} 35. Ke2 {[%clk 00:28:53]}
{[%emt 00:00:16]} Kc6 {[%clk 00:14:19]} {[%emt 00:02:20]} 36. Kf3 {[%clk
00:28:58]} {[%emt 00:00:05]} Kd6 {[%clk 00:13:20]} {[%emt 00:01:09]} 37. Kxe4
{[%emt 00:00:18]} Ke5+ 1/2-1/2